fUSD/lending_fUSD_20240212
["ID","MTS","AMOUNT","RATE_DAILY","PERIOD"]
[313775512,1707713439567,-1247.26,0.00023074,2]
[313775513,1707713439576,-500.0,0.00023074,2]
[313775514,1707713439585,-500.0,0.00023074,2]
[313775515,1707713439595,-390.55514371,0.00023074,2]
[313775516,1707713439604,-500.0,0.00023074,2]
[313775517,1707713439613,-511.87198394,0.00023074,2]
[313775518,1707713439623,-517.34906551,0.00023074,2]
[313775519,1707713439632,-690.68,0.00023074,2]
[313775520,1707713439642,-500.0,0.00023074,2]
[313775521,1707713439651,-522.91614859,0.00023074,2]
[313775522,1707713439661,-1015.8,0.00023074,2]
[313775523,1707713439670,-505.53450075,0.00023074,2]
[313775524,1707713439679,-1172.62,0.00023074,2]
[313775525,1707713439689,-1172.62,0.00023074,2]
[313775526,1707713439699,-450.19746517,0.00023074,2]
[313775527,1707713439709,-518.79544348,0.00023074,2]
[313775528,1707713439719,-500.0,0.00023074,2]
[313775529,1707713439728,-532.07119971,0.00023074,2]
[313775530,1707713439738,-510.63375437,0.00023074,2]
[313775531,1707713439747,-507.46998393,0.00023074,2]
[313775532,1707713439757,-505.88883672,0.00023074,2]
[313775533,1707713439766,-500.0,0.00023074,2]
[313775534,1707713439776,-695.64,0.00023074,2]
[313775535,1707713439786,-510.61655595,0.00023074,2]
[313775536,1707713439795,-233.76885187,0.00023074,2]
[313775537,1707713439805,-1025.66,0.00023074,2]
[313775538,1707713439815,-1610.82,0.00023074,2]
[313775539,1707713439825,-506.25365898,0.00023074,2]
[313775540,1707713439834,-353.27131767,0.00023074,2]
[313775541,1707713439843,-1196.07,0.00023074,2]
[313775542,1707713439853,-507.77594587,0.00023074,2]
[313775543,1707713439863,-500.0,0.00023074,2]
[313775544,1707713439873,-500.0,0.00023074,2]
[313775545,1707713439882,-170.82474585,0.00023074,2]
[313775546,1707713439892,-505.99146282,0.00023074,2]
[313775547,1707713439901,-500.0,0.00023074,2]
[313775549,1707713439911,-2120.71,0.00023074,2]
[313775551,1707713439921,-505.5113133,0.00023074,2]
[313775552,1707713439930,-508.89190839,0.00023074,2]
[313775553,1707713439940,-1358.65,0.00023074,2]
[313775554,1707713439950,-507.51768579,0.00023074,2]
[313775555,1707713439960,-541.2782383,0.00023074,2]
[313775556,1707713439975,-402.5417617,0.00023074,2]
[313775557,1707713439985,-486.71659878,0.00023074,2]
[313775558,1707713439995,-513.17235396,0.00023074,2]
[313775559,1707713440005,-509.81255667,0.00023074,2]
[313775560,1707713440014,-602.61,0.00023074,2]
[313775561,1707713440024,-511.44771097,0.00023074,2]
[313775562,1707713440033,-1124.89,0.00023074,2]
[313775563,1707713440043,-507.0665873,0.00023074,2]
[313775564,1707713440053,-508.21224475,0.00023074,2]
[313775565,1707713440062,-1984.98,0.00023074,2]
[313775566,1707713440072,-575.56,0.00023074,2]
[313775567,1707713440086,-503.51606161,0.00023074,2]
[313775568,1707713440096,-316.12974486,0.00023074,2]
[313775572,1707713440408,-503.75926226,0.00023074,2]
[313775573,1707713440418,-509.48775384,0.00023074,2]
[313775574,1707713440428,-500.0,0.00023074,2]
[313775575,1707713440437,-506.21340643,0.00023074,2]
[313775576,1707713440447,-1375.27,0.00023074,2]
[313775577,1707713440456,-504.97808099,0.00023074,2]
[313775578,1707713440467,-500.0,0.00023074,2]
[313775579,1707713440475,-500.0,0.00023074,2]
[313775580,1707713440485,-1440.76,0.00023074,2]
[313775581,1707713440494,-500.0,0.00023074,2]
[313775582,1707713440503,-505.92556289,0.00023074,2]
[313775583,1707713440512,-749.56,0.00023074,2]
[313775584,1707713440520,-500.0,0.00023074,2]
[313775585,1707713440533,-511.18395794,0.00023074,2]
[313775586,1707713440542,-500.0,0.00023074,2]
[313775587,1707713440551,-518.71544404,0.00023074,2]
[313775588,1707713440560,-504.51937248,0.00023074,2]
[313775589,1707713440571,-500.0,0.00023074,2]
[313775590,1707713440579,-500.0,0.00023074,2]
[313775591,1707713440589,-500.0,0.00023074,2]
[313775592,1707713440598,-499.96950475,0.00023074,2]
[313775593,1707713440607,-222.46882383,0.00023074,2]
[313775594,1707713440621,-277.53117617,0.00023074,2]
[313775595,1707713440631,-500.0,0.00023074,2]
[313775596,1707713440641,-506.642144,0.00023074,2]
[313775597,1707713440650,-500.0,0.00023074,2]
[313775598,1707713440659,-1878.76,0.00023074,2]
[313775599,1707713440668,-500.0,0.00023074,2]
[313775600,1707713440678,-250.40561582,0.00023074,2]
[313775601,1707713440686,-1503.5,0.00023074,2]
[313775602,1707713440695,-500.0,0.00023074,2]
[313775603,1707713440705,-5420.81,0.00023074,2]
[313775604,1707713440714,-500.0,0.00023074,2]
[313775605,1707713440725,-1037.37,0.00023074,2]
[313775606,1707713440734,-318.05159909,0.00023074,2]
[313775607,1707713440743,-500.0,0.00023074,2]
[313775608,1707713440752,-500.0,0.00023074,2]
[313775609,1707713440761,-500.0,0.00023074,2]
[313775610,1707713440771,-757.63,0.00023074,2]
[313775611,1707713440780,-500.0,0.00023074,2]
[313775612,1707713440789,-500.0,0.00023074,2]
[313775613,1707713440799,-730.78,0.00023074,2]
[313775614,1707713440808,-500.0,0.00023074,2]
[313775615,1707713440817,-787.72,0.00023074,2]
[313775616,1707713440826,-500.0,0.00023074,2]
[313775617,1707713440836,-500.0,0.00023074,2]
[313775618,1707713440845,-277.89672637,0.00023074,2]
[313775619,1707713440854,-1403.31,0.00023074,2]
[313775620,1707713440864,-500.0,0.00023074,2]
[313775621,1707713440874,-500.0,0.00023074,2]
[313775622,1707713440883,-536.3,0.00023074,2]
[313775623,1707713440892,-1400.68,0.00023074,2]
[313775624,1707713440902,-500.0,0.00023074,2]
[313775625,1707713440911,-500.0,0.00023074,2]
[313775626,1707713440921,-2297.86,0.00023074,2]
[313775627,1707713440930,-500.0,0.00023074,2]
[313775628,1707713440940,-500.0,0.00023074,2]
[313775629,1707713440950,-500.0,0.00023074,2]
[313775630,1707713440959,-2673.38,0.00023074,2]
[313775631,1707713440970,-500.0,0.00023074,2]
[313775632,1707713440980,-514.14834939,0.00023074,2]
[313775633,1707713440990,-3568.05,0.00023074,2]
[313775634,1707713441000,-404.11366377,0.00023074,2]
[313775635,1707713441009,-500.0,0.00023074,2]
[313775636,1707713441020,-2000.82,0.00023074,2]
[313775637,1707713441029,-511.29367363,0.00023074,2]
[313775638,1707713441039,-5729.92,0.00023074,2]
[313775639,1707713441049,-150.0,0.00023074,2]
[313775640,1707713441060,-1776.21,0.00023074,2]
[313775641,1707713441069,-666.63,0.00023074,2]
[313775642,1707713441079,-500.0,0.00023074,2]
[313775643,1707713441088,-500.0,0.00023074,2]
[313775644,1707713441098,-500.0,0.00023074,2]
[313775645,1707713441107,-518.88131421,0.00023074,2]
[313775646,1707713441116,-500.0,0.00023074,2]
[313775647,1707713441126,-500.0,0.00023074,2]
[313775648,1707713441135,-500.0,0.00023074,2]
[313775649,1707713441145,-500.0,0.00023074,2]
[313775650,1707713441154,-500.0,0.00023074,2]
[313775651,1707713441163,-3834.1,0.00023074,2]
[313775652,1707713441173,-500.0,0.00023074,2]
[313775653,1707713441183,-1732.77,0.00023074,2]
[313775654,1707713441192,-500.0,0.00023074,2]
[313775655,1707713441202,-505.78014354,0.00023074,2]
[313775656,1707713441211,-500.0,0.00023074,2]
[313775657,1707713441222,-4430.85,0.00023074,2]
[313775658,1707713441231,-55.68171838,0.00023074,2]
[313775659,1707713441245,-444.31828162,0.00023074,2]
[313775660,1707713441254,-2946.05,0.00023074,2]
[313775661,1707713441263,-500.0,0.00023074,2]
[313775662,1707713441273,-743.02,0.00023074,2]
[313775663,1707713441282,-545.6212044,0.00023074,2]
[313775664,1707713441291,-500.0,0.00023074,2]
[313775665,1707713441300,-500.0,0.00023074,2]
[313775666,1707713441310,-2731.24,0.00023074,2]
[313775667,1707713441322,-500.0,0.00023074,2]
[313775668,1707713441338,-243.59037319,0.00023074,2]
[313775669,1707713441347,-969.73,0.00023074,2]
[313775670,1707713441357,-497.63144264,0.00023074,2]
[313775671,1707713441368,-2158.05,0.00023074,2]
[313775672,1707713441378,-1869.73,0.00023074,2]
[313775673,1707713441387,-500.0,0.00023074,2]
[313775674,1707713441396,-2113.33,0.00023074,2]
[313775675,1707713441406,-500.0,0.00023074,2]
[313775676,1707713441415,-500.0,0.00023074,2]
[313775677,1707713441425,-1242.89,0.00023074,2]
[313775678,1707713441435,-500.0,0.00023074,2]
[313775679,1707713441444,-500.0,0.00023074,2]
[313775680,1707713441453,-508.77222191,0.00023074,2]
[313775681,1707713441462,-500.0,0.00023074,2]
[313775682,1707713441473,-500.0,0.00023074,2]
[313775683,1707713441483,-783.02,0.00023074,2]
[313775684,1707713441492,-500.0,0.00023074,2]
[313775685,1707713441501,-500.0,0.00023074,2]
[313775686,1707713441511,-500.0,0.00023074,2]
[313775687,1707713441520,-2497.13,0.00023074,2]
[313775688,1707713441529,-500.0,0.00023074,2]
[313775689,1707713441538,-500.0,0.00023074,2]
[313775690,1707713441547,-928.71,0.00023074,2]
[313775691,1707713441557,-500.0,0.00023074,2]
[313775692,1707713441566,-500.0,0.00023074,2]
[313775693,1707713441575,-780.77,0.00023074,2]
[313775694,1707713441584,-513.06738522,0.00023074,2]
[313775695,1707713441593,-500.0,0.00023074,2]
[313775696,1707713441603,-506.66673086,0.00023074,2]
[313775697,1707713441612,-615.6,0.00023074,2]
[313775698,1707713441621,-500.0,0.00023074,2]
[313775699,1707713441631,-506.66965207,0.00023074,2]
[313775700,1707713441640,-574.64100321,0.00023074,2]
[313775701,1707713441649,-845.72,0.00023074,2]
[313775702,1707713441659,-500.0,0.00023074,2]
[313775703,1707713441668,-514.27189249,0.00023074,2]
[313775704,1707713441677,-500.0,0.00023074,2]
[313775705,1707713441686,-500.0,0.00023074,2]
[313775706,1707713441696,-1192.11,0.00023074,2]
[313775707,1707713441705,-6977.19854312,0.00023074,2]
[313775708,1707713442464,-11215.82145688,0.00023074,2]
[313775710,1707713442476,-500.0,0.00023074,2]
[313775711,1707713442486,-500.0,0.00023074,2]
[313775712,1707713442495,-507.8930446,0.00023074,2]
[313775714,1707713442503,-4279.51,0.00023074,2]
[313775715,1707713442513,-500.0,0.00023074,2]
[313775716,1707713442522,-500.0,0.00023074,2]
[313775717,1707713442531,-500.0,0.00023074,2]
[313775718,1707713442541,-486.76123069,0.00023074,2]
[313775719,1707713442551,-500.0,0.00023074,2]
[313775720,1707713442560,-629.41,0.00023074,2]
[313775721,1707713442569,-500.0,0.00023074,2]
[313775722,1707713442579,-507.03959975,0.00023074,2]
[313775723,1707713442588,-1849.98,0.00023074,2]
[313775724,1707713442598,-2153.63,0.00023074,2]
[313775725,1707713442607,-4348.65,0.00023074,2]
[313775726,1707713442616,-500.0,0.00023074,2]
[313775727,1707713442626,-2467.31,0.00023074,2]
[313775728,1707713442635,-233.07809977,0.00023074,2]
[313775729,1707713442645,-500.0,0.00023074,2]
[313775730,1707713442654,-1744.62,0.00023074,2]
[313775731,1707713442664,-500.0,0.00023074,2]
[313775732,1707713442674,-550.73481676,0.00023074,2]
[313775733,1707713442683,-1686.61218491,0.00023074,2]
[313775734,1707713442692,-1009.58,0.00023074,2]
[313775735,1707713442702,-779.25,0.00023074,2]
[313775736,1707713442711,-500.0,0.00023074,2]
[313775737,1707713442723,-500.0,0.00023074,2]
[313775738,1707713442732,-500.0,0.00023074,2]
[313775739,1707713442741,-658.13,0.00023074,2]
[313775740,1707713442750,-267.89041065,0.00023074,2]
[313775741,1707713442759,-4799.3,0.00023074,2]
[313775742,1707713442768,-2342.96,0.00023074,2]
[313775743,1707713442778,-500.0,0.00023074,2]
[313775744,1707713442787,-500.0,0.00023074,2]
[313775745,1707713442797,-1372.96,0.00023074,2]
[313775746,1707713442807,-1413.41,0.00023074,2]
[313775747,1707713442817,-500.0,0.00023074,2]
[313775748,1707713442826,-500.0,0.00023074,2]
[313775749,1707713442836,-645.66,0.00023074,2]
[313775750,1707713442845,-915.1,0.00023074,2]
[313775751,1707713442854,-593.61,0.00023074,2]
[313775752,1707713442863,-2234.16,0.00023074,2]
[313775753,1707713442872,-2346.31,0.00023074,2]
[313775754,1707713442881,-500.0,0.00023074,2]
[313775755,1707713442890,-500.0,0.00023074,2]
[313775756,1707713442900,-1513.74,0.00023074,2]
[313775757,1707713442910,-534.54330693,0.00023074,2]
[313775759,1707713442919,-1645.77,0.00023074,2]
[313775761,1707713442929,-500.0,0.00023074,2]
[313775763,1707713442939,-500.0,0.00023074,2]
[313775765,1707713442949,-500.0,0.00023074,2]
[313775766,1707713442958,-6473.94803004,0.00023074,2]
[313775767,1707713442969,-1179.31,0.00023074,2]
[313775768,1707713442979,-1147.44,0.00023074,2]
[313775769,1707713442988,-763.99,0.00023074,2]
[313775770,1707713442998,-669.03,0.00023074,2]
[313775771,1707713443008,-330.50213293,0.00023074,2]
[313775772,1707713443017,-515.59,0.00023074,2]
[313775773,1707713443027,-9047.83,0.00023074,2]
[313775774,1707713443036,-4333.1,0.00023074,2]
[313775775,1707713443045,-409.90657922,0.00023074,2]
[313775776,1707713443055,-1185.09,0.00023074,2]
[313775777,1707713443064,-500.0,0.00023074,2]
[313775778,1707713443074,-500.0,0.00023074,2]
[313775779,1707713443083,-500.0,0.00023075,2]
[313775780,1707713443092,-536.44135995,0.00023075,2]
[313775781,1707713443101,-500.0,0.00023075,2]
[313775782,1707713443111,-522.62910511,0.00023075,2]
[313775783,1707713443120,-519.99750107,0.00023075,2]
[313775784,1707713443129,-515.70659039,0.00023075,2]
[313775785,1707713443138,-541.33966873,0.00023075,2]
[313775786,1707713443147,-500.0,0.00023075,2]
[313775787,1707713443157,-519.865027,0.00023075,2]
[313775788,1707713443166,-500.0,0.00023075,2]
[313775789,1707713443176,-516.56259157,0.00023075,2]
[313775790,1707713443185,-500.0,0.00023075,2]
[313775791,1707713443194,-519.49285087,0.00023075,2]
[313775792,1707713443203,-500.0,0.00023075,2]
[313775793,1707713443213,-603.39080938,0.00023075,2]
[313775794,1707713443223,-500.0,0.00023075,2]
[313775795,1707713443233,-500.0,0.00023075,2]
[313775796,1707713443242,-512.99586121,0.00023075,2]
[313775797,1707713443251,-500.0,0.00023075,2]
[313775798,1707713443260,-500.0,0.00023075,2]
[313775799,1707713443269,-500.0,0.00023075,2]
[313775800,1707713443278,-500.0,0.00023075,2]
[313775801,1707713443287,-500.0,0.00023075,2]
[313775802,1707713443297,-500.0,0.00023075,2]
[313775803,1707713443306,-510.56110429,0.00023075,2]
[313775804,1707713443316,-500.0,0.00023075,2]
[313775805,1707713443325,-500.0,0.00023075,2]
[313775806,1707713443338,-500.0,0.00023075,2]
[313775807,1707713443349,-528.00448366,0.00023075,2]
[313775808,1707713443358,-500.0,0.00023075,2]
[313775809,1707713443369,-500.0,0.00023075,2]
[313775810,1707713443378,-500.0,0.00023075,2]
[313775811,1707713443387,-500.0,0.00023075,2]
[313775812,1707713443397,-500.0,0.00023075,2]
[313775813,1707713443406,-508.08289692,0.00023075,2]
[313775814,1707713443417,-500.0,0.00023075,2]
[313775815,1707713443426,-500.0,0.00023075,2]
[313775816,1707713443435,-500.0,0.00023075,2]
[313775817,1707713443445,-609.45050164,0.00023075,2]
[313775818,1707713443454,-500.0,0.00023075,2]
[313775819,1707713443463,-500.0,0.00023075,2]
[313775820,1707713443473,-508.05886748,0.00023075,2]
[313775821,1707713443482,-500.0,0.00023075,2]
[313775822,1707713443491,-518.8269043,0.00023075,2]
[313775823,1707713443501,-500.0,0.00023075,2]
[313775824,1707713443510,-500.0,0.00023075,2]
[313775825,1707713443520,-517.72920095,0.00023075,2]
[313775826,1707713443529,-500.0,0.00023075,2]
[313775827,1707713443538,-500.0,0.00023075,2]
[313775828,1707713443548,-511.60801015,0.00023075,2]
[313775829,1707713443557,-500.0,0.00023075,2]
[313775830,1707713443566,-500.0,0.00023075,2]
[313775831,1707713443575,-500.0,0.00023075,2]
[313775832,1707713443584,-500.0,0.00023075,2]
[313775833,1707713443594,-500.0,0.00023075,2]
[313775834,1707713443603,-519.62774563,0.00023075,2]
[313775835,1707713443613,-500.0,0.00023075,2]
[313775836,1707713443622,-585.37883363,0.00023075,2]
[313775837,1707713443631,-536.33697458,0.00023075,2]
[313775838,1707713443641,-500.0,0.00023075,2]
[313775839,1707713443650,-500.0,0.00023075,2]
[313775840,1707713443660,-538.34266218,0.00023075,2]
[313775841,1707713443670,-500.0,0.00023075,2]
[313775842,1707713443679,-530.92764499,0.00023075,2]
[313775843,1707713443689,-520.90108336,0.00023075,2]
[313775844,1707713443698,-500.0,0.00023075,2]
[313775845,1707713443707,-500.0,0.00023075,2]
[313775846,1707713443716,-546.93070471,0.00023075,2]
[313775847,1707713443726,-524.5034763,0.00023075,2]
[313775848,1707713443735,-500.0,0.00023075,2]
[313775849,1707713443745,-269.23028935,0.00023075,2]
[313775850,1707713443754,-512.99523402,0.00023075,2]
[313775851,1707713443764,-594.2,0.00023075,2]
[313775852,1707713443773,-541.68505044,0.00023075,2]
[313775853,1707713443783,-500.0,0.00023075,2]
[313775854,1707713443793,-500.0,0.00023075,2]
[313775855,1707713443803,-500.0,0.00023075,2]
[313775856,1707713443812,-500.0,0.00023075,2]
[313775857,1707713443821,-546.57,0.00023075,2]
[313775858,1707713443830,-500.0,0.00023075,2]
[313775859,1707713443840,-500.0,0.00023075,2]
[313775860,1707713443849,-516.80557237,0.00023075,2]
[313775861,1707713443859,-500.0,0.00023075,2]
[313775862,1707713443868,-532.11047256,0.00023075,2]
[313775863,1707713443878,-500.0,0.00023075,2]
[313775864,1707713443887,-500.0,0.00023075,2]
[313775865,1707713443896,-500.0,0.00023075,2]
[313775866,1707713443906,-507.07,0.00023075,2]
[313775867,1707713443915,-525.52,0.00023075,2]
[313775868,1707713443925,-525.8005639,0.00023075,2]
[313775869,1707713443935,-537.99,0.00023075,2]
[313775870,1707713443944,-500.0,0.00023075,2]
[313775871,1707713443953,-532.1668385,0.00023075,2]
[313775872,1707713443963,-500.0,0.00023075,2]
[313775873,1707713443974,-500.0,0.00023075,2]
[313775874,1707713443983,-500.0,0.00023075,2]
[313775875,1707713443993,-536.42607937,0.00023075,2]
[313775876,1707713444003,-500.0,0.00023075,2]
[313775877,1707713444012,-500.0,0.00023075,2]
[313775878,1707713444022,-500.0,0.00023075,2]
[313775879,1707713444031,-519.25256973,0.00023075,2]
[313775880,1707713444041,-515.41669744,0.00023075,2]
[313775881,1707713444050,-500.0,0.00023075,2]
[313775882,1707713444060,-500.0,0.00023075,2]
[313775883,1707713444072,-557.07150621,0.00023075,2]
[313775884,1707713444284,-500.0,0.00023075,2]
[313775885,1707713444295,-500.0,0.00023075,2]
[313775886,1707713444304,-500.0,0.00023075,2]
[313775887,1707713444313,-512.003911,0.00023075,2]
[313775888,1707713444326,-500.0,0.00023075,2]
[313775889,1707713444335,-500.0,0.00023075,2]
[313775890,1707713444344,-500.0,0.00023075,2]
[313775891,1707713444354,-662.01,0.00023075,2]
[313775892,1707713444364,-538.57970792,0.00023075,2]
[313775893,1707713444373,-500.0,0.00023075,2]
[313775894,1707713444383,-535.21070755,0.00023075,2]
[313775895,1707713444392,-195.63866783,0.00023075,2]
[313775896,1707713444402,-500.0,0.00023075,2]
[313775897,1707713444413,-531.40751544,0.00023075,2]
[313775898,1707713444422,-510.74538674,0.00023075,2]
[313775899,1707713444432,-511.22238045,0.00023075,2]
[313775900,1707713444442,-500.0,0.00023075,2]
[313775901,1707713444451,-519.61505046,0.00023075,2]
[313775902,1707713444460,-529.94478313,0.00023075,2]
[313775903,1707713444469,-529.10226681,0.00023075,2]
[313775904,1707713444479,-500.0,0.00023075,2]
[313775905,1707713444488,-500.0,0.00023075,2]
[313775906,1707713444497,-527.57598051,0.00023075,2]
[313775907,1707713444507,-500.0,0.00023075,2]
[313775908,1707713444516,-500.0,0.00023075,2]
[313775909,1707713444525,-545.07066564,0.00023075,2]
[313775910,1707713444535,-524.80163676,0.00023075,2]
[313775911,1707713444544,-345.89997197,0.00023075,2]
[313775912,1707713445181,-154.10002803,0.00023075,2]
[313775913,1707713445191,-145.89997197,0.00023075,2]
[313775915,1707713445874,-519.82,0.00023074,2]
[313775916,1707713445883,-354.10002803,0.00023075,2]
[313775917,1707713445893,-500.0,0.00023075,2]
[313775918,1707713445902,-512.38167391,0.00023075,2]
[313775919,1707713445911,-546.10426712,0.00023075,2]
[313775920,1707713445921,-179.96230972,0.00023075,2]
[313775921,1707713445932,-320.03769028,0.00023075,2]
[313775922,1707713445941,-214.60158144,0.00023075,2]
[313775923,1707713445950,-500.0,0.00023075,2]
[313775924,1707713445959,-312.45927206,0.00023075,2]
[313775925,1707713445972,-187.54072794,0.00023075,2]
[313775926,1707713445982,-500.0,0.00023075,2]
[313775927,1707713445992,-523.02609872,0.00023075,2]
[313775928,1707713446002,-500.0,0.00023075,2]
[313775929,1707713446011,-500.0,0.00023075,2]
[313775930,1707713446021,-385.69395091,0.00023075,2]
[313775932,1707713446069,-115.6343237,0.00023075,2]
[313775933,1707713446079,-500.0,0.00023075,2]
[313775934,1707713446088,-500.0,0.00023075,2]
[313775935,1707713446097,-515.49478936,0.00023075,2]
[313775936,1707713446106,-527.91904607,0.00023075,2]
[313775937,1707713446116,-575.6373349,0.00023075,2]
[313775938,1707713446125,-500.0,0.00023075,2]
[313775939,1707713446134,-500.0,0.00023075,2]
[313775940,1707713446143,-526.40203192,0.00023075,2]
[313775941,1707713446152,-500.0,0.00023075,2]
[313775942,1707713446161,-500.0,0.00023075,2]
[313775943,1707713446170,-500.0,0.00023075,2]
[313775944,1707713446179,-528.9871849,0.00023075,2]
[313775945,1707713446189,-646.17,0.00023075,2]
[313775946,1707713446198,-500.0,0.00023075,2]
[313775947,1707713446207,-628.38,0.00023075,2]
[313775948,1707713446216,-500.0,0.00023075,2]
[313775949,1707713446227,-500.0,0.00023075,2]
[313775950,1707713446236,-500.0,0.00023075,2]
[313775951,1707713446246,-958.57,0.00023075,2]
[313775952,1707713446255,-500.0,0.00023075,2]
[313775953,1707713446264,-537.17184748,0.00023075,2]
[313775954,1707713446274,-346.93769358,0.00023075,2]
[313775955,1707713446283,-512.22517575,0.00023075,2]
[313775956,1707713446292,-520.86892286,0.00023075,2]
[313775957,1707713446301,-500.0,0.00023075,2]
[313775958,1707713446311,-500.0,0.00023075,2]
[313775959,1707713446321,-500.0,0.00023075,2]
[313775960,1707713446331,-500.0,0.00023075,2]
[313775961,1707713446342,-506.55841656,0.00023075,2]
[313775962,1707713446351,-500.0,0.00023075,2]
[313775963,1707713446360,-500.0,0.00023075,2]
[313775964,1707713446370,-518.26191261,0.00023075,2]
[313775965,1707713446379,-1063.69,0.00023075,2]
[313775966,1707713446388,-500.0,0.00023075,2]
[313775967,1707713446397,-500.0,0.00023075,2]
[313775968,1707713446407,-500.0,0.00023075,2]
[313775969,1707713446417,-500.0,0.00023075,2]
[313775970,1707713446426,-500.0,0.00023075,2]
[313775971,1707713446436,-500.0,0.00023075,2]
[313775972,1707713446446,-500.0,0.00023075,2]
[313775973,1707713446456,-500.0,0.00023075,2]
[313775974,1707713446465,-510.3329247,0.00023075,2]
[313775975,1707713446478,-1326.35,0.00023075,2]
[313775976,1707713446487,-500.0,0.00023075,2]
[313775977,1707713446496,-500.0,0.00023075,2]
[313775978,1707713446505,-511.31070249,0.00023075,2]
[313775979,1707713446514,-500.0,0.00023075,2]
[313775980,1707713446524,-1252.67,0.00023075,2]
[313775981,1707713446533,-500.0,0.00023075,2]
[313775982,1707713446542,-531.84141338,0.00023075,2]
[313775983,1707713446551,-500.0,0.00023075,2]
[313775984,1707713446561,-500.0,0.00023075,2]
[313775985,1707713446570,-518.94672879,0.00023075,2]
[313775986,1707713446579,-565.11,0.00023075,2]
[313775987,1707713446589,-514.79758226,0.00023075,2]
[313775988,1707713446598,-500.0,0.00023075,2]
[313775989,1707713446607,-500.0,0.00023075,2]
[313775990,1707713446616,-500.0,0.00023075,2]
[313775991,1707713446625,-541.76584084,0.00023075,2]
[313775992,1707713446634,-541.36,0.00023075,2]
[313775993,1707713446643,-500.0,0.00023075,2]
[313775994,1707713446653,-500.0,0.00023075,2]
[313775995,1707713446662,-500.0,0.00023075,2]
[313775996,1707713446671,-500.0,0.00023075,2]
[313775997,1707713446680,-500.0,0.00023075,2]
[313775998,1707713446689,-500.0,0.00023075,2]
[313775999,1707713446698,-500.0,0.00023075,2]
[313776000,1707713446707,-500.0,0.00023075,2]
[313776001,1707713446717,-500.0,0.00023075,2]
[313776002,1707713446727,-640.44425678,0.00023075,2]
[313776003,1707713446736,-532.34,0.00023075,2]
[313776004,1707713446746,-1373.1,0.00023075,2]
[313776005,1707713446755,-500.0,0.00023075,2]
[313776006,1707713446764,-500.0,0.00023075,2]
[313776007,1707713446773,-500.0,0.00023075,2]
[313776008,1707713446783,-682.93,0.00023075,2]
[313776009,1707713446792,-500.0,0.00023075,2]
[313776010,1707713446801,-500.0,0.00023075,2]
[313776011,1707713446809,-500.0,0.00023075,2]
[313776012,1707713446819,-1072.21,0.00023075,2]
[313776013,1707713446827,-500.0,0.00023075,2]
[313776014,1707713446836,-500.0,0.00023075,2]
[313776015,1707713446845,-617.18147135,0.00023075,2]
[313776016,1707713446854,-500.0,0.00023075,2]
[313776017,1707713446863,-500.0,0.00023075,2]
[313776018,1707713446873,-500.0,0.00023075,2]
[313776019,1707713446882,-714.0,0.00023075,2]
[313776020,1707713446891,-561.6913091,0.00023075,2]
[313776021,1707713446900,-250.0,0.00023075,2]
[313776022,1707713446909,-524.1573415,0.00023075,2]
[313776023,1707713446918,-500.0,0.00023075,2]
[313776024,1707713446927,-1296.92,0.00023075,2]